Cogmind - Beta 17 @@@ ROGUE MODE // 2026.07.24 @ 18:03:39 Player: Cinder Result: Destroyed by as-62235 with Assembled Blade Performance ------------- Evolutions (0) 0 Regions Visited (2) 400 Robots Destroyed (24) 120 Value Destroyed (370) 370 Prototype IDs (0) 0 Alien Tech Used (0) 0 Bonus (14) 14 TOTAL SCORE: 904 Bonus ------- Follower Combat Kills 14 Cogmind --------- Core Integrity 0/250 Matter 280/300 Energy 100/100 System Corruption 5% Temperature Cool (0) Movement Rolling (90) Location -10/Mines Parts ------- > --- POWER (1) -------- (None) > --- PROPULSION (2) --- Wheel Compact Wheel > --- UTILITY (2) ------ Large Storage Unit > --- WEAPON (2) ------- Assault Rifle > --- INVENTORY (15) --- Ion Engine Wheel Compact Wheel Compact Wheel Large Matter Pod (150) Signal Interpreter Assault Rifle Assault Rifle Assault Rifle Grenade Launcher Peak State ------------ > --- POWER ------------ Ion Engine > --- PROPULSION ------- Wheel Wheel > --- UTILITY ---------- Large Storage Unit Visual Processing Unit > --- WEAPON ----------- Assault Rifle Assault Rifle > --- INVENTORY -------- Ion Engine Wheel Compact Wheel Compact Wheel Compact Wheel Assault Rifle Assault Rifle Assault Rifle Assault Rifle Grenade Launcher [Rating: 9] Favorites ----------- Power Ion Engine Engine Ion Engine Propulsion Wheel Wheel Wheel Utility Large Storage Unit Device Tractor Beam Storage Large Storage Unit Processor Visual Processing Unit Weapon Assault Rifle Ballistic Gun Assault Rifle Build | -11 -10 -10 ------- Run | Yrd Mat Min Slots Evolved . | . . . Power . | . . . Propulsion . | . . . Utility . | . . . Weapon . | . . . Parts Attached 23 | 9 12 2 Power 3 | 1 2 . Engine 3 | 1 2 . Core . | . . . Reactor . | . . . Propulsion 8 | 4 4 . Treads . | . . . Leg . | . . . Wheel 8 | 4 4 . Hover . | . . . Flight . | . . . Utility 4 | 2 2 . Device 1 | 1 . . Storage 2 | 1 1 . Processor 1 | . 1 . Hackware . | . . . Protection . | . . . Artifact . | . . . Weapon 8 | 2 4 2 Energy Gun . | . . . Energy Cannon . | . . . Ballistic Gun 8 | 2 4 2 Ballistic Cannon . | . . . Launcher . | . . . Special Weapon . | . . . Impact Weapon . | . . . Slashing Weapon . | . . . Piercing Weapon . | . . . Special Melee Weapon . | . . . Unidentified Prototypes . | . . . Parts Lost 7 | . 3 4 Power 1 | . . 1 Propulsion 3 | . 2 1 Utility 2 | . 1 1 Weapon 1 | . . 1 Highest Loss Streak 4 | . 1 4 To Critical Strikes . | . . . Average Backups 8 | 2 9 11 Power . | . 1 1 Propulsion 3 | 1 3 3 Utility . | . . 1 Weapon 3 | . 4 4 Tool/Special . | . . . Unused Backups 9 | . 3 6 Power 1 | . . 1 Propulsion 1 | . . 1 Utility 2 | . . 2 Weapon 5 | . 3 2 Tool/Special . | . . . Average Slot Usage (%) 96 | . 96 94 Engine 13 | . 14 12 Wheel 26 | . 25 28 Device 6 | . 7 . Storage 14 | . 14 14 Processor 6 | . 5 10 Ballistic Gun 27 | . 28 27 Peak Build Rating 9 | 7 9 9 Average Rating 7 | 5 7 8 On Entrance 5 | . 7 9 Avg Prop Armor Cover (%) 3 | . . 3 Naked Turns . | . . . Heaviest Build 30 | 14 30 29 Greatest Support 32 | 32 26 26 Greatest Overweight (x) 2 | . 2 2 Average Overweight (x) . | . . . Largest Inventory Capacity 15 | 8 15 15 Average Capacity 13 | 7 13 15 Most Carried 13 | 6 11 13 Average Carried 8 | 2 9 11 Final Capacity 15 | 8 15 15 Final Carried 11 | 6 11 10 Class Distribution -------------------- 83% | Mutant 16% | Scavenger-Mutant Dominant Class ---------------- Mutant | -10/Materials Mutant | -10/Mines Resources | -11 -10 -10 ----------- Run | Yrd Mat Min Matter Collected 977 | 335 495 147 Remotely 299 | 53 246 . Salvage Created 677 | 134 514 29 Parts 49 | 9 40 . Haulers Intercepted 1 | . 1 . Recyclers Shooed 2 | . 2 . Parts Field Recycled . | . . . Retrieved Matter . | . . . Parts Self-Destructed . | . . . Prevented . | . . . Parts Restored . | . . . Kills | -11 -10 -10 ------- Run | Yrd Mat Min Combat Hostiles Destroyed 20 | . 18 2 Guns 20 | . 18 2 Classes Destroyed 8 | 3 4 1 Worker 2 | 2 . . Tunneler 1 | 1 . . Hauler 1 | . 1 . Recycler 1 | 1 . . Watcher 1 | . 1 . Swarmer 12 | . 12 . Grunt 6 | . 6 . Assembled 2 | . . 2 Best Kill Streak 4 | 2 4 1 Combat Bots Only 4 | . 4 1 Max Kills in Single Turn 1 | 1 1 1 Gunslinging . | . . . Exploded . | . . . Melee . | . . . Uniques/NPCs Destroyed . | . . . Combat | -11 -10 -10 -------- Run | Yrd Mat Min Hostile Shots Fired 126 | . 85 41 Missed 34 | . 22 12 Hits 92 | . 63 29 Melee 9 | . . 9 Projectile 83 | . 63 20 Critical Strikes 1 | . 1 . Part Disruptions 1 | . . 1 Damage Taken 1023 | . 570 453 Core 254 | . 140 114 Absorbed by Shields . | . . . Core Remaining (%) 100 | 100 . . Volleys Fired 83 | 14 62 7 Largest 2 | 2 2 2 Hottest 40 | 40 40 40 Shots Fired 166 | 28 124 14 Gun 166 | 28 124 14 Cannon . | . . . Launcher . | . . . Special . | . . . Kinetic 166 | 28 124 14 Thermal . | . . . Explosive . | . . . Electromagnetic . | . . . Robot Hit Streak 7 | 4 7 6 Robot Miss Streak 6 | 5 6 2 Penetration Max . | . . . Secondary Targets 3 | . 3 . Max Gunslinging Chain 1 | . 1 . Shots Hit Robots 92 | 12 69 11 Core Hits 38 | 6 28 4 Critical Kills 3 | 1 2 . Critical Parts Destroyed . | . . . Critical Strikes 3 | 1 2 . Destroy 3 | 1 2 . Melee Attacks . | . . . Impact . | . . . Slashing . | . . . Piercing . | . . . Sneak Attacks . | . . . Combat Hostiles . | . . . Follow-up Attacks . | . . . Damage Inflicted 1120 | 130 853 137 Guns 1120 | 130 853 137 Cannons . | . . . Explosions . | . . . Melee . | . . . Ramming . | . . . Kinetic 1120 | 130 853 137 Thermal . | . . . Explosive . | . . . Electromagnetic . | . . . Impact . | . . . Slashing . | . . . Piercing . | . . . Highest Corruption 5 | . . 5 Average Corruption 3 | . . 3 Corruption Purged . | . . . Corruption Blocked . | . . . Overload Shots . | . . . Overflow Damage . | . . . Projectiles . | . . . Explosions . | . . . Melee . | . . . Knockbacks . | . . . Impact . | . . . Kinetic . | . . . Secondary . | . . . Self-Inflicted Damage . | . . . Shots . | . . . Rammed . | . . . Targets Rammed . | . . . Kicked . | . . . Crushed . | . . . Highest Temperature 20 | . 20 13 Average Temperature 8 | . 7 9 Received Heat Transfer 195 | . 135 60 Siege Activations . | . . . Martial Activations . | . . . Shielding Activations . | . . . Robots Disrupted . | . . . Combat Hostiles . | . . . Robots Corrupted . | . . . Combat Hostiles . | . . . Parts Fried . | . . . Impact Corruptions . | . . . Robots Melted . | . . . Combat Hostiles . | . . . Parts Melted . | . . . Heat Transferred . | . . . Parts Sabotaged . | . . . Parts Stolen . | . . . Parts Stripped . | . . . Power Chain Reactions . | . . . Alert | -11 -10 -10 ------- Run | Yrd Mat Min Maximum Alert Level . | . . . Low Security (%) 100 | 100 100 100 Level 1 . | . . . Level 2 . | . . . Level 3 . | . . . Level 4 . | . . . Level 5 . | . . . High Security . | . . . Max Security . | . . . Peak Influence 159 | 5 159 51 Initial 49 | . . 49 Average 65 | 1 83 24 Influence Increases 613 | 20 551 42 Destroy 0b10 Robot/C 400 | . 360 40 Destroy 0b10 Robot/NC 30 | 20 10 . Destroy Leader 74 | . 74 . Allied During Kill 2 | . . 2 Successful Hack 45 | . 45 . Destroy Structure 2 | . 2 . Partial Spotted 30 | . 30 . Lose Combat Pursuer 30 | . 30 . Influence Decreases 613 | 20 423 170 Entered New Map 79 | . . 79 Time Decay 483 | 20 393 70 Lost Part 30 | . 30 . Lost Ally 21 | . . 21 Squads Dispatched 2 | . 2 . Investigation 1 | . 1 . Extermination . | . . . Reinforcement 1 | . 1 . Assault . | . . . Garrison . | . . . Intercept . | . . . Searches Triggered . | . . . Construction Impeded . | . . . Haulers Reinforced . | . . . Active Scanning Responses . | . . . Cargo Convoy Interrupts . | . . . Stealth | -11 -10 -10 --------- Run | Yrd Mat Min Distress Signals . | . . . Communications Jammed . | . . . Distress Signals . | . . . Times Spotted 41 | . 26 15 Peak Tracking Total 9 | . 6 9 Tactical Retreats 3 | . 1 2 Traps | -11 -10 -10 ------- Run | Yrd Mat Min Traps Triggered 2 | . 2 . Indirectly . | . . . Trap Hack Attempts . | . . . Triggered . | . . . Disarmed . | . . . Reprogrammed . | . . . Reused . | . . . Traps Extracted . | . . . Installed . | . . . Triggered . | . . . Machines | -11 -10 -10 ---------- Run | Yrd Mat Min Machines Disabled . | . . . Max in Single Turn . | . . . Machines Repaired . | . . . Machines Dismantled . | . . . Machines Sabotaged . | . . . Overloaded Fab Kills . | . . . Hacking | -11 -10 -10 --------- Run | Yrd Mat Min Machines Accessed 8 | . 8 . Terminals 8 | . 8 . Fabricators . | . . . Repair Stations . | . . . Recycling Units . | . . . Scanalyzers . | . . . Garrison Access . | . . . Total Hacks 18 | . 18 . Successful 10 | . 10 . Failed 8 | . 8 . Catastrophic 1 | . 1 . Database Lockouts . | . . . Manual 17 | . 17 . Terminals 18 | . 18 . Fabricators . | . . . Repair Stations . | . . . Recycling Units . | . . . Scanalyzers . | . . . Garrison Access . | . . . Terminal Hacks 3 | . 3 . Part Schematic 1 | . 1 . Robot Analysis 1 | . 1 . Branch Access Points 1 | . 1 . Fabricator Hacks . | . . . Repair Station Hacks . | . . . Recycling Unit Hacks . | . . . Scanalyzer . | . . . Garrison Access Hacks . | . . . Unauthorized Hacks 7 | . 7 . Terminals 7 | . 7 . Botnet 7 | . 7 . Fabricators . | . . . Repair Stations . | . . . Recycling Units . | . . . Scanalyzers . | . . . Garrison Access . | . . . Data Cores Recovered . | . . . Used . | . . . Hacking Detections 7 | . 7 . Full Trace Events . | . . . Feedback Events . | . . . Feedback Blocked . | . . . Robot Schematics Acquired . | . . . Robots Built . | . . . Authchips . | . . . Time . | . . . Total Robot Build Rating . | . . . Part Schematics Acquired 1 | . 1 . Parts Built . | . . . Authchips . | . . . Time . | . . . Total Part Build Rating . | . . . Part Studies Acquired . | . . . Parts Repaired . | . . . Time . | . . . Parts Recycled . | . . . Recycled Matter . | . . . Retrieved Matter . | . . . Retrieved Components . | . . . Parts Scanalyzed . | . . . Part Schematics Acquired . | . . . Parts Damaged . | . . . Bothacking | -11 -10 -10 ------------ Run | Yrd Mat Min Used RIF Installer . | . . . Robots Hacked . | . . . Non-combat . | . . . Combat . | . . . Robot Hacks Applied . | . . . Relay Couplers Released . | . . . Fabnet Peak Effective % . | . . . Robots Rewired . | . . . Allies Hacked . | . . . Hacks Repelled . | . . . Allies | -11 -10 -10 -------- Run | Yrd Mat Min Total Allies 2 | . . 2 Largest Group 2 | . . 2 Highest-Rated Group 43 | . . 43 Highest-Rated Ally 31 | . . 31 Total Orders . | . . . Ally Attacks 12 | . . 12 Total Damage 106 | . . 106 Kills 4 | . . 4 Allies Corrupted . | . . . Allies Melted . | . . . Intel | -11 -10 -10 ------- Run | Yrd Mat Min Active Infowar (turns) 545 | . 377 168 Optics 545 | . 377 168 Robot Analysis Total 1 | . 1 . Derelict Logs Recovered 1 | . . 1 Drone Launches . | . . . Drone Recoveries . | . . . Exploration | -11 -10 -10 ------------- Run | Yrd Mat Min Turns Passed 1323 | 142 961 220 Spaces Moved 1014 | 88 742 184 Core 3 | 3 . . Treads . | . . . Legs . | . . . Wheels 1011 | 85 742 184 Hover . | . . . Flight . | . . . Fastest Speed 50 | 50 80 90 Average Speed 96 | 97 95 102 Slowest Speed 110 | 100 110 110 Overloaded Moves . | . . . Propulsion Burnouts . | . . . Robots Hopped . | . . . Potential Cave-ins . | . . . Cave-ins Triggered . | . . . Exploration Rate (%) 52 | 4 94 59 Regions Visited 2 Branch Regions 1 Pre-discovered Areas . | . . . Known Exits Taken 1 | . 1 . Unknown Exits Taken 1 | 1 . . Scrap Searched 2 | . . 2 Spaces Dug . | . . . Terrain Destroyed . | . . . Melee . | . . . Projectile . | . . . AOE . | . . . Terrain Rammed . | . . . Walls Destroyed . | . . . Machines Disabled . | . . . Actions | -11 -10 -10 --------- Run | Yrd Mat Min Total 1190 | 114 875 201 Wait 42 | . 39 3 Move 1012 | 87 741 184 Hop . | . . . Pick Up 15 | 4 9 2 Fast Attach 8 | 7 1 . Attach 4 | . 3 1 Detach . | . . . Swap 14 | 2 10 2 Drop 12 | . 10 2 Fire 83 | 14 62 7 Melee . | . . . Ram . | . . . Kick . | . . . Crush . | . . . Escape Stasis . | . . . Rewire . | . . . Trap . | . . . Miscellaneous . | . . . Route ------- -11/Scrapyard -10/Materials (discovered 4 exits: [*Mat x3] / *Min) -10/Mines (discovered 1 exit: [*Mat]) History --------- Turn | Location | Event 4 | -11/Scrapyard | Discovered new exit (range 15) 143 | -11/Scrapyard | Entered Materials 315 | -10/Materials | Discovered new exit (range 5) 329 | -10/Materials | Build established: Mutant 483 | -10/Materials | Discovered new exit (range 10) 750 | -10/Materials | Discovered new exit (range 9) 793 | -10/Materials | Discovered new exit (range 18) 836 | -10/Materials | Identified exit to Mines 843 | -10/Materials | Derelicts attacked the area 885 | -10/Materials | Core integrity fell below 50% 1104 | -10/Materials | Entered Mines 1110 | -10/Mines | Discovered new exit (range 5) 1201 | -10/Mines | Learned Materials stockpile data 1210 | -10/Mines | Assembled infested the area 1318 | -10/Mines | Core integrity fell below 20% 1324 | -10/Mines | Destroyed by as-62235 with Assembled Blade Last Messages --------------- Data stored: Materials stockpile data. 01207_ Dropped Assault Rifle. 01210_ ALERT: Infestation in the mines, dispatching Demolisher response squad. 01214_ K-01 Serf collects debris. 01256_ as-90227 destroyed. 01259_ Acquired 10 matter. 01264_ Extracted 22 matter. 01272_ Visual Processing Unit destroyed. 01272_ System corrupted by crushing effect (+3). 01275_ Knocked back. 01281_ as-06760 destroyed. 01291_ Ion Engine destroyed. 01313_ Assault Rifle destroyed. 01315_ Com. Wheel destroyed. 01315_ System corrupted by crushing effect (+2). 01315_ Knocked back. 01318_ S-10 Pest destroyed. 01319_ S-10 Pest system corrupted by crushing effect. 01320_ S-10 Pest system terminally corrupted. Map ----- +----------------------------------------------------+ | ???# """ #??# ##???? ###???????????? | | ???# """ #??# #????# ##?????????????? | | ????# """ #### #????? #??????????????? | | ????# ## #??????????????????????? | | ?????# ##??????????????????????? | | ???????#### ##???????????????????????? | | ??????????# #####????????????????????????? | | ??????????# #????????????????????????????? | | ????????### #########????????????????????? | | ??????### #????????????????????? | | ???#### ######???????????????????????? | | ??## ####????????????????????????????? | | ??# ##???????????????????????????????? | | ??# #????????????????????????????????? | | ??# #????????????????????????????????? | | ??## ##????????????????????????????????? | | ???# ##?????????????????????????????????? | | ???# #??????????????????????????????????? | | ???# ##?????????????????????????????????? | | ???# ####??????????????????????????????? | | ???## ###????????????????????????????? | | ????## aa ##???????????????????????????? | | ?????## a #?????###???????????????????? | | ??????# ###### ##??????????????????? | | ??????# as $##?????????????????? | | ??????## a% a@ #?????????????????? | | ???????## = #### #?????????????? | | ????????### #????? s ??????????? | | ??????????## #??????# ?????????? | | ???????????## #????????# s %?????????? | | ????????????## #?????????? #?????????? | | ????????????? #?????????????????????? | | ?????????????# #????????????????????? | | ?????????????## #????????????????????? | | ??????????????## ##????????????????????? | | ????????????????# ##?????????????????????? | | ?????????????????###??????????????????????? | | ??????????????????????????????????????????? | | ??????????????????????????????????????????? | | ??????????????????????????????????????????? | | ??????????????????????????????????????????? | | ??????????????????????????????????????????? | | ??????????????????????????????????????????? | | ??????????????????????????????????????????? | | ??????????????????????????????????????????? | | | | | | | | | | | +----------------------------------------------------+ Best States ------------- Heat Dissipation 25 Energy Generation 10 Energy Capacity 250 Matter Stores 300 Matter Capacity 300 Sight Range 18 Terrain Scan Density 10 Evasion (%) 44 Item Schematics ----------------- Huge Storage Unit | -10/Materials | Hacked Robot Schematics ------------------ None Fabricated ------------ Nothing Repaired ---------- Nothing Studied --------- None Alien Tech Used ----------------- None Achievements -------------- None Challenges ------------ None Game ------ Seed SapperMicrowarpHoverbase Manual? 0 Play Time 00:14:34 Cumulative 205.5 hours Start 2026.07.24 @ 17:49:13 End 2026.07.24 @ 18:03:39 Sessions 1 Manual Loads 0 Difficulty Rogue Special Mode None Game No. 266 Rogue 266 Adventurer 0 Explorer 0 Win Type - Total 5 Types 5/0/0/0/0/0/0/0/0/0 Lore% 79 Gallery% 61 Achievement% 49 Wizard Run 0 Options --------- Layout 0 ASCII 0 Keyboard 0 Movement Numpad Keybinds 0 Fullscreen 1 Font 18/Terminus Map View 76x50 Zoom Use 0% Tactical HUD 1 Map Filters NONE Filters NONE Steam 1 RUN: 65094190-2e1e-48da-b506-2d06ae34a9fd